{"text_format":"3","workbook":"xlsx","n_sheets":5,"sheets":["Festoversikt","Gjesteliste","Mat og drikke","Andre viktige elementer","Bordplassering"],"not_rendered":{"defined_names":9},"read":"whole","date_system":"1900"}

{"sheet":"Festoversikt","index":0,"n_rows":22,"n_cols":8,"rows_kept":22,"merged":[[6,3,6,4],[6,5,6,6],[9,1,9,2]]}
[]
[]
[null,"Festoversikt"]
[]
[]
[null,"ARRANGEMENT",null,"GJESTESAMMENDRAG",{"$nulls":3},{"$f":"\"IKKE SVART: \"&IkkeSvart","v":"IKKE SVART: 2"}]
[null,"Bestemors 75-årsdag",null,"SU-OVERSIKT",null,"KOSTNADER PER GJEST",null,"BUDSJETTBELØP"]
[{"$nulls":3},"Bekreftede gjester","Totalt bekreftet","Mat","Annet","Totalt"]
[null,"DATO",null,"Voksne",{"$f":"SUMIF(Gjestetabell[KOMMER],\"=Ja\",Gjestetabell[VOKSNE])","v":26},{"$f":"Mattabell[[#Totals],[PRIS PER VOKSEN]]","v":{"v":12.690089084110037,"d":"kr 12.69"}},{"$f":"ViktigeKostnaderPerGjest","v":{"v":18.695652173913043,"d":"kr 18.70"}},{"$f":"(Deltakersammendrag[[#This Row],[Mat]]+Deltakersammendrag[[#This Row],[Annet]])*VoksneTotalt","v":{"v":816.0292727086002,"d":"kr 816.03"}}]
[null,"2011-06-14",null,"Barn",{"$f":"SUMIF(Gjestetabell[KOMMER],\"=Ja\",Gjestetabell[BARN])","v":20},{"$f":"Mattabell[[#Totals],[PRIS PER BARN]]","v":{"v":7.252884190656953,"d":"kr 7.25"}},{"$f":"ViktigeKostnaderPerGjest","v":{"v":18.695652173913043,"d":"kr 18.70"}},{"$f":"(Deltakersammendrag[[#This Row],[Mat]]+Deltakersammendrag[[#This Row],[Annet]])*BarnTotalt","v":{"v":518.9707272914,"d":"kr 518.97"}}]
[{"$nulls":3},"Totalt",{"$f":"SUBTOTAL(109,Deltakersammendrag[Totalt bekreftet])","v":46},{"$f":"\"Gjsn.     \"&TEXT(SUBTOTAL(101,Deltakersammendrag[Mat]),\"kr # ##0,00\")","v":"Gjsn.     kr 9,97"},{"$f":"\"Gjsn.     \"&TEXT(SUBTOTAL(101,Deltakersammendrag[Annet]),\"kr # ##0,00\")","v":"Gjsn.     kr 18,70"},{"$f":"SUBTOTAL(109,Deltakersammendrag[Totalt])","v":{"v":1335,"d":"kr 1,335.00"}}]
[null,"KLOKKESLETT"]
[null,"14:00 til 16:00"]
[]
[null,"STED"]
[null,"Tante Livs hus",null,"BUDSJETTSAMMENDRAG"]
[{"$nulls":3},"ELEMENT","ANTALL","BUDSJETTBELØP","TOTALKOSTNAD","DIFFERANSE"]
[{"$nulls":3},"Mat og drikke",{"$f":"COUNTA(Mattabell[MAT- ELLER DRIKKEELEMENT])","v":18},{"v":500,"d":"kr 500.00"},{"$f":"Mattabell[[#Totals],[TOTALKOSTNAD]]","v":{"v":475,"d":"kr 475.00"}},{"$f":"Budsjettoversikt[[#This Row],[BUDSJETTBELØP]]-Budsjettoversikt[[#This Row],[TOTALKOSTNAD]]","v":{"v":25,"d":"kr 25.00"}}]
[{"$nulls":3},{"$f":"Tabell1Overskrift","v":"Utstyr og pynt"},{"$f":"COUNTA(Tabell1Budsjett[Utstyr og pynt])","v":7},{"v":400,"d":"kr 400.00"},{"$f":"Tabell1Budsjett[[#Totals],[Kostnad]]","v":{"v":400,"d":"kr 400.00"}},{"$f":"Budsjettoversikt[[#This Row],[BUDSJETTBELØP]]-Budsjettoversikt[[#This Row],[TOTALKOSTNAD]]","v":{"v":0,"d":"kr 0.00"}}]
[{"$nulls":3},{"$f":"Tabell2Overskrift","v":"Dekorasjoner"},{"$f":"COUNTA(Tabell2Budsjett[Dekorasjoner])","v":4},{"v":150,"d":"kr 150.00"},{"$f":"Tabell2Budsjett[[#Totals],[Kostnad]]","v":{"v":175,"d":"kr 175.00"}},{"$f":"Budsjettoversikt[[#This Row],[BUDSJETTBELØP]]-Budsjettoversikt[[#This Row],[TOTALKOSTNAD]]","v":{"v":-25,"d":"(kr 25.00)"}}]
[{"$nulls":3},{"$f":"Tabell3Overskrift","v":"Annet"},{"$f":"COUNTA(Tabell3Budsjett[Annet])","v":4},{"v":300,"d":"kr 300.00"},{"$f":"Tabell3Budsjett[[#Totals],[Kostnad]]","v":{"v":285,"d":"kr 285.00"}},{"$f":"Budsjettoversikt[[#This Row],[BUDSJETTBELØP]]-Budsjettoversikt[[#This Row],[TOTALKOSTNAD]]","v":{"v":15,"d":"kr 15.00"}}]
[{"$nulls":3},"Totalt",{"$f":"SUBTOTAL(109,Budsjettoversikt[ANTALL])","v":33},{"$f":"SUBTOTAL(109,Budsjettoversikt[BUDSJETTBELØP])","v":{"v":1350,"d":"kr 1,350.00"}},{"$f":"SUBTOTAL(109,Budsjettoversikt[TOTALKOSTNAD])","v":{"v":1335,"d":"kr 1,335.00"}},{"$f":"Budsjettoversikt[[#Totals],[BUDSJETTBELØP]]-Budsjettoversikt[[#Totals],[TOTALKOSTNAD]]","v":{"v":15,"d":"kr 15.00"}}]

{"sheet":"Gjesteliste","index":1,"n_rows":22,"n_cols":12,"rows_kept":22}
[]
[]
[null,"Gjesteliste"]
[]
[]
[]
[null,"NAVN","ADRESSE","BY","STAT","POSTNUMMER","TELEFON","E-POST","KOMMER","BARN","VOKSNE","TOTALT"]
[null,"Familie 1","Adresse 1","By 1","Stat 1","Postnummer 1","Telefon 1","E-post1","Nei",2,2,{"$f":"SUM(Gjestetabell[[#This Row],[BARN]:[VOKSNE]])","v":4}]
[null,"Familie 2","Adresse 2","By 2","Stat 2","Postnummer 2","Telefon 2","E-post2","Ja",1,1,{"$f":"SUM(Gjestetabell[[#This Row],[BARN]:[VOKSNE]])","v":2}]
[null,"Familie 3","Adresse 3","By 3","Stat 3","Postnummer 3","Telefon 3","E-post3","Ja",3,3,{"$f":"SUM(Gjestetabell[[#This Row],[BARN]:[VOKSNE]])","v":6}]
[null,"Familie 4","Adresse 4","By 4","Stat 4","Postnummer 4","Telefon 4","E-post4",null,null,2,{"$f":"SUM(Gjestetabell[[#This Row],[BARN]:[VOKSNE]])","v":2}]
[null,"Familie 5","Adresse 5","By 5","Stat 5","Postnummer 5","Telefon 5","E-post5","Ja",4,3,{"$f":"SUM(Gjestetabell[[#This Row],[BARN]:[VOKSNE]])","v":7}]
[null,"Familie 6","Adresse 6","By 6","Stat 6","Postnummer 6","Telefon 6","E-post6","Ja",2,2,{"$f":"SUM(Gjestetabell[[#This Row],[BARN]:[VOKSNE]])","v":4}]
[null,"Familie 7","Adresse 7","By 7","Stat 7","Postnummer 7","Telefon 7","E-post7","Ja",1,4,{"$f":"SUM(Gjestetabell[[#This Row],[BARN]:[VOKSNE]])","v":5}]
[null,"Familie 8","Adresse 8","By 8","Stat 8","Postnummer 8","Telefon 8","E-post8","Nei",5,3,{"$f":"SUM(Gjestetabell[[#This Row],[BARN]:[VOKSNE]])","v":8}]
[null,"Familie 9","Adresse 9","By 9","Stat 9","Postnummer 9","Telefon 9","E-post9","Ja",3,2,{"$f":"SUM(Gjestetabell[[#This Row],[BARN]:[VOKSNE]])","v":5}]
[null,"Familie 10","Adresse 10","By 10","Stat 10","Postnummer 10","Telefon 10","E-post10","Ja",null,4,{"$f":"SUM(Gjestetabell[[#This Row],[BARN]:[VOKSNE]])","v":4}]
[null,"Familie 11","Adresse 11","By 11","Stat 11","Postnummer 11","Telefon 11","E-post11","Ja",3,5,{"$f":"SUM(Gjestetabell[[#This Row],[BARN]:[VOKSNE]])","v":8}]
[null,"Familie 12","Adresse 12","By 12","Stat 12","Postnummer 12","Telefon 12","E-post12","Nei",2,3,{"$f":"SUM(Gjestetabell[[#This Row],[BARN]:[VOKSNE]])","v":5}]
[null,"Familie 13","Adresse 13","By 13","Stat 13","Postnummer 13","Telefon 13","E-post13","Ja",3,2,{"$f":"SUM(Gjestetabell[[#This Row],[BARN]:[VOKSNE]])","v":5}]
[null,"Familie 14","Adresse 14","By 14","Stat 14","Postnummer 14","Telefon 14","E-post14","Nei",null,1,{"$f":"SUM(Gjestetabell[[#This Row],[BARN]:[VOKSNE]])","v":1}]
[null,"Familie 15","Adresse 15","By 15","Stat 15","Postnummer 15","Telefon 15","E-post15",null,null,2,{"$f":"SUM(Gjestetabell[[#This Row],[BARN]:[VOKSNE]])","v":2}]

{"sheet":"Mat og drikke","index":2,"n_rows":25,"n_cols":10,"rows_kept":25}
[]
[]
[null,"Mat og drikke"]
[]
[null,"Oppgi pris og beregnede porsjoner for å beregne totalt antall og pris per porsjon basert på totalt antall deltakere"]
[null,"MAT- ELLER DRIKKEELEMENT","TOTALKOSTNAD","PORSJON PER BARN","PORSJON PER VOKSEN","TOTALT ANTALL PORSJONER","PRIS PER PORSJON","PRIS PER BARN","PRIS PER VOKSEN","NOTATER"]
[null,"Soda",{"v":15,"d":"kr 15.00"},0.5,2,{"$f":"(Mattabell[[#This Row],[PORSJON PER BARN]]*BarnTotalt)+(Mattabell[[#This Row],[PORSJON PER VOKSEN]]*VoksneTotalt)","v":62},{"$f":"IFERROR(Mattabell[[#This Row],[TOTALKOSTNAD]]/Mattabell[[#This Row],[TOTALT ANTALL PORSJONER]],\"\")","v":{"v":0.24193548387096775,"d":"kr 0.24"}},{"$f":"IFERROR(Mattabell[[#This Row],[PRIS PER PORSJON]]*Mattabell[[#This Row],[PORSJON PER BARN]],\"\")","v":{"v":0.12096774193548387,"d":"kr 0.12"}},{"$f":"IFERROR(Mattabell[[#This Row],[PRIS PER PORSJON]]*Mattabell[[#This Row],[PORSJON PER VOKSEN]],\"\")","v":{"v":0.4838709677419355,"d":"kr 0.48"}},"2 litersflasker"]
[null,"Juicekartonger",{"v":15,"d":"kr 15.00"},2,0,{"$f":"(Mattabell[[#This Row],[PORSJON PER BARN]]*BarnTotalt)+(Mattabell[[#This Row],[PORSJON PER VOKSEN]]*VoksneTotalt)","v":40},{"$f":"IFERROR(Mattabell[[#This Row],[TOTALKOSTNAD]]/Mattabell[[#This Row],[TOTALT ANTALL PORSJONER]],\"\")","v":{"v":0.375,"d":"kr 0.38"}},{"$f":"IFERROR(Mattabell[[#This Row],[PRIS PER PORSJON]]*Mattabell[[#This Row],[PORSJON PER BARN]],\"\")","v":{"v":0.75,"d":"kr 0.75"}},{"$f":"IFERROR(Mattabell[[#This Row],[PRIS PER PORSJON]]*Mattabell[[#This Row],[PORSJON PER VOKSEN]],\"\")","v":{"v":0,"d":"kr 0.00"}},"Eple og hvite druer"]
[null,"Vin",{"v":50,"d":"kr 50.00"},0,2,{"$f":"(Mattabell[[#This Row],[PORSJON PER BARN]]*BarnTotalt)+(Mattabell[[#This Row],[PORSJON PER VOKSEN]]*VoksneTotalt)","v":52},{"$f":"IFERROR(Mattabell[[#This Row],[TOTALKOSTNAD]]/Mattabell[[#This Row],[TOTALT ANTALL PORSJONER]],\"\")","v":{"v":0.9615384615384616,"d":"kr 0.96"}},{"$f":"IFERROR(Mattabell[[#This Row],[PRIS PER PORSJON]]*Mattabell[[#This Row],[PORSJON PER BARN]],\"\")","v":{"v":0,"d":"kr 0.00"}},{"$f":"IFERROR(Mattabell[[#This Row],[PRIS PER PORSJON]]*Mattabell[[#This Row],[PORSJON PER VOKSEN]],\"\")","v":{"v":1.9230769230769231,"d":"kr 1.92"}}]
[null,"Kake",{"v":75,"d":"kr 75.00"},1,1,{"$f":"(Mattabell[[#This Row],[PORSJON PER BARN]]*BarnTotalt)+(Mattabell[[#This Row],[PORSJON PER VOKSEN]]*VoksneTotalt)","v":46},{"$f":"IFERROR(Mattabell[[#This Row],[TOTALKOSTNAD]]/Mattabell[[#This Row],[TOTALT ANTALL PORSJONER]],\"\")","v":{"v":1.6304347826086956,"d":"kr 1.63"}},{"$f":"IFERROR(Mattabell[[#This Row],[PRIS PER PORSJON]]*Mattabell[[#This Row],[PORSJON PER BARN]],\"\")","v":{"v":1.6304347826086956,"d":"kr 1.63"}},{"$f":"IFERROR(Mattabell[[#This Row],[PRIS PER PORSJON]]*Mattabell[[#This Row],[PORSJON PER VOKSEN]],\"\")","v":{"v":1.6304347826086956,"d":"kr 1.63"}},"Bestill fra lokalt bakeri"]
[null,"Iskrem",{"v":20,"d":"kr 20.00"},1,1.5,{"$f":"(Mattabell[[#This Row],[PORSJON PER BARN]]*BarnTotalt)+(Mattabell[[#This Row],[PORSJON PER VOKSEN]]*VoksneTotalt)","v":59},{"$f":"IFERROR(Mattabell[[#This Row],[TOTALKOSTNAD]]/Mattabell[[#This Row],[TOTALT ANTALL PORSJONER]],\"\")","v":{"v":0.3389830508474576,"d":"kr 0.34"}},{"$f":"IFERROR(Mattabell[[#This Row],[PRIS PER PORSJON]]*Mattabell[[#This Row],[PORSJON PER BARN]],\"\")","v":{"v":0.3389830508474576,"d":"kr 0.34"}},{"$f":"IFERROR(Mattabell[[#This Row],[PRIS PER PORSJON]]*Mattabell[[#This Row],[PORSJON PER VOKSEN]],\"\")","v":{"v":0.5084745762711864,"d":"kr 0.51"}}]
[null,"Puddingposjoner",{"v":15,"d":"kr 15.00"},1,0,{"$f":"(Mattabell[[#This Row],[PORSJON PER BARN]]*BarnTotalt)+(Mattabell[[#This Row],[PORSJON PER VOKSEN]]*VoksneTotalt)","v":20},{"$f":"IFERROR(Mattabell[[#This Row],[TOTALKOSTNAD]]/Mattabell[[#This Row],[TOTALT ANTALL PORSJONER]],\"\")","v":{"v":0.75,"d":"kr 0.75"}},{"$f":"IFERROR(Mattabell[[#This Row],[PRIS PER PORSJON]]*Mattabell[[#This Row],[PORSJON PER BARN]],\"\")","v":{"v":0.75,"d":"kr 0.75"}},{"$f":"IFERROR(Mattabell[[#This Row],[PRIS PER PORSJON]]*Mattabell[[#This Row],[PORSJON PER VOKSEN]],\"\")","v":{"v":0,"d":"kr 0.00"}},"Kjøp ferdige kopper: vanilje og sjokolade"]
[null,"Stuet sopp",{"v":32,"d":"kr 32.00"},1,2,{"$f":"(Mattabell[[#This Row],[PORSJON PER BARN]]*BarnTotalt)+(Mattabell[[#This Row],[PORSJON PER VOKSEN]]*VoksneTotalt)","v":72},{"$f":"IFERROR(Mattabell[[#This Row],[TOTALKOSTNAD]]/Mattabell[[#This Row],[TOTALT ANTALL PORSJONER]],\"\")","v":{"v":0.4444444444444444,"d":"kr 0.44"}},{"$f":"IFERROR(Mattabell[[#This Row],[PRIS PER PORSJON]]*Mattabell[[#This Row],[PORSJON PER BARN]],\"\")","v":{"v":0.4444444444444444,"d":"kr 0.44"}},{"$f":"IFERROR(Mattabell[[#This Row],[PRIS PER PORSJON]]*Mattabell[[#This Row],[PORSJON PER VOKSEN]],\"\")","v":{"v":0.8888888888888888,"d":"kr 0.89"}},"Sjampinjonger stuet med kremost og pølser"]
[null,"Bruschetta",{"v":22,"d":"kr 22.00"},0,3,{"$f":"(Mattabell[[#This Row],[PORSJON PER BARN]]*BarnTotalt)+(Mattabell[[#This Row],[PORSJON PER VOKSEN]]*VoksneTotalt)","v":78},{"$f":"IFERROR(Mattabell[[#This Row],[TOTALKOSTNAD]]/Mattabell[[#This Row],[TOTALT ANTALL PORSJONER]],\"\")","v":{"v":0.28205128205128205,"d":"kr 0.28"}},{"$f":"IFERROR(Mattabell[[#This Row],[PRIS PER PORSJON]]*Mattabell[[#This Row],[PORSJON PER BARN]],\"\")","v":{"v":0,"d":"kr 0.00"}},{"$f":"IFERROR(Mattabell[[#This Row],[PRIS PER PORSJON]]*Mattabell[[#This Row],[PORSJON PER VOKSEN]],\"\")","v":{"v":0.8461538461538461,"d":"kr 0.85"}},"Tomat og basilikum "]
[null,"Røkt laks",{"v":50,"d":"kr 50.00"},1,2,{"$f":"(Mattabell[[#This Row],[PORSJON PER BARN]]*BarnTotalt)+(Mattabell[[#This Row],[PORSJON PER VOKSEN]]*VoksneTotalt)","v":72},{"$f":"IFERROR(Mattabell[[#This Row],[TOTALKOSTNAD]]/Mattabell[[#This Row],[TOTALT ANTALL PORSJONER]],\"\")","v":{"v":0.6944444444444444,"d":"kr 0.69"}},{"$f":"IFERROR(Mattabell[[#This Row],[PRIS PER PORSJON]]*Mattabell[[#This Row],[PORSJON PER BARN]],\"\")","v":{"v":0.6944444444444444,"d":"kr 0.69"}},{"$f":"IFERROR(Mattabell[[#This Row],[PRIS PER PORSJON]]*Mattabell[[#This Row],[PORSJON PER VOKSEN]],\"\")","v":{"v":1.3888888888888888,"d":"kr 1.39"}}]
[null,"Mini-bagels",{"v":20,"d":"kr 20.00"},1,2,{"$f":"(Mattabell[[#This Row],[PORSJON PER BARN]]*BarnTotalt)+(Mattabell[[#This Row],[PORSJON PER VOKSEN]]*VoksneTotalt)","v":72},{"$f":"IFERROR(Mattabell[[#This Row],[TOTALKOSTNAD]]/Mattabell[[#This Row],[TOTALT ANTALL PORSJONER]],\"\")","v":{"v":0.2777777777777778,"d":"kr 0.28"}},{"$f":"IFERROR(Mattabell[[#This Row],[PRIS PER PORSJON]]*Mattabell[[#This Row],[PORSJON PER BARN]],\"\")","v":{"v":0.2777777777777778,"d":"kr 0.28"}},{"$f":"IFERROR(Mattabell[[#This Row],[PRIS PER PORSJON]]*Mattabell[[#This Row],[PORSJON PER VOKSEN]],\"\")","v":{"v":0.5555555555555556,"d":"kr 0.56"}},"4 poser - assortert"]
[null,"Kremost",{"v":10,"d":"kr 10.00"},1,2,{"$f":"(Mattabell[[#This Row],[PORSJON PER BARN]]*BarnTotalt)+(Mattabell[[#This Row],[PORSJON PER VOKSEN]]*VoksneTotalt)","v":72},{"$f":"IFERROR(Mattabell[[#This Row],[TOTALKOSTNAD]]/Mattabell[[#This Row],[TOTALT ANTALL PORSJONER]],\"\")","v":{"v":0.1388888888888889,"d":"kr 0.14"}},{"$f":"IFERROR(Mattabell[[#This Row],[PRIS PER PORSJON]]*Mattabell[[#This Row],[PORSJON PER BARN]],\"\")","v":{"v":0.1388888888888889,"d":"kr 0.14"}},{"$f":"IFERROR(Mattabell[[#This Row],[PRIS PER PORSJON]]*Mattabell[[#This Row],[PORSJON PER VOKSEN]],\"\")","v":{"v":0.2777777777777778,"d":"kr 0.28"}},"2 store tuber"]
[null,"Kapers",{"v":12,"d":"kr 12.00"},1,2,{"$f":"(Mattabell[[#This Row],[PORSJON PER BARN]]*BarnTotalt)+(Mattabell[[#This Row],[PORSJON PER VOKSEN]]*VoksneTotalt)","v":72},{"$f":"IFERROR(Mattabell[[#This Row],[TOTALKOSTNAD]]/Mattabell[[#This Row],[TOTALT ANTALL PORSJONER]],\"\")","v":{"v":0.16666666666666666,"d":"kr 0.17"}},{"$f":"IFERROR(Mattabell[[#This Row],[PRIS PER PORSJON]]*Mattabell[[#This Row],[PORSJON PER BARN]],\"\")","v":{"v":0.16666666666666666,"d":"kr 0.17"}},{"$f":"IFERROR(Mattabell[[#This Row],[PRIS PER PORSJON]]*Mattabell[[#This Row],[PORSJON PER VOKSEN]],\"\")","v":{"v":0.3333333333333333,"d":"kr 0.33"}},"3 krukker"]
[null,"Kyllingvinger",{"v":45,"d":"kr 45.00"},2,4,{"$f":"(Mattabell[[#This Row],[PORSJON PER BARN]]*BarnTotalt)+(Mattabell[[#This Row],[PORSJON PER VOKSEN]]*VoksneTotalt)","v":144},{"$f":"IFERROR(Mattabell[[#This Row],[TOTALKOSTNAD]]/Mattabell[[#This Row],[TOTALT ANTALL PORSJONER]],\"\")","v":{"v":0.3125,"d":"kr 0.31"}},{"$f":"IFERROR(Mattabell[[#This Row],[PRIS PER PORSJON]]*Mattabell[[#This Row],[PORSJON PER BARN]],\"\")","v":{"v":0.625,"d":"kr 0.63"}},{"$f":"IFERROR(Mattabell[[#This Row],[PRIS PER PORSJON]]*Mattabell[[#This Row],[PORSJON PER VOKSEN]],\"\")","v":{"v":1.25,"d":"kr 1.25"}},"Kjøp fra lokalbutikken"]
[null,"Hummus",{"v":10,"d":"kr 10.00"},4,6,{"$f":"(Mattabell[[#This Row],[PORSJON PER BARN]]*BarnTotalt)+(Mattabell[[#This Row],[PORSJON PER VOKSEN]]*VoksneTotalt)","v":236},{"$f":"IFERROR(Mattabell[[#This Row],[TOTALKOSTNAD]]/Mattabell[[#This Row],[TOTALT ANTALL PORSJONER]],\"\")","v":{"v":0.0423728813559322,"d":"kr 0.04"}},{"$f":"IFERROR(Mattabell[[#This Row],[PRIS PER PORSJON]]*Mattabell[[#This Row],[PORSJON PER BARN]],\"\")","v":{"v":0.1694915254237288,"d":"kr 0.17"}},{"$f":"IFERROR(Mattabell[[#This Row],[PRIS PER PORSJON]]*Mattabell[[#This Row],[PORSJON PER VOKSEN]],\"\")","v":{"v":0.2542372881355932,"d":"kr 0.25"}},"Lag kvelden før"]
[null,"Parmesanchips",{"v":14,"d":"kr 14.00"},4,6,{"$f":"(Mattabell[[#This Row],[PORSJON PER BARN]]*BarnTotalt)+(Mattabell[[#This Row],[PORSJON PER VOKSEN]]*VoksneTotalt)","v":236},{"$f":"IFERROR(Mattabell[[#This Row],[TOTALKOSTNAD]]/Mattabell[[#This Row],[TOTALT ANTALL PORSJONER]],\"\")","v":{"v":0.059322033898305086,"d":"kr 0.06"}},{"$f":"IFERROR(Mattabell[[#This Row],[PRIS PER PORSJON]]*Mattabell[[#This Row],[PORSJON PER BARN]],\"\")","v":{"v":0.23728813559322035,"d":"kr 0.24"}},{"$f":"IFERROR(Mattabell[[#This Row],[PRIS PER PORSJON]]*Mattabell[[#This Row],[PORSJON PER VOKSEN]],\"\")","v":{"v":0.3559322033898305,"d":"kr 0.36"}},"Lag kvelden før"]
[null,"Assorterte grønnsaker",{"v":30,"d":"kr 30.00"},4,10,{"$f":"(Mattabell[[#This Row],[PORSJON PER BARN]]*BarnTotalt)+(Mattabell[[#This Row],[PORSJON PER VOKSEN]]*VoksneTotalt)","v":340},{"$f":"IFERROR(Mattabell[[#This Row],[TOTALKOSTNAD]]/Mattabell[[#This Row],[TOTALT ANTALL PORSJONER]],\"\")","v":{"v":0.08823529411764706,"d":"kr 0.09"}},{"$f":"IFERROR(Mattabell[[#This Row],[PRIS PER PORSJON]]*Mattabell[[#This Row],[PORSJON PER BARN]],\"\")","v":{"v":0.35294117647058826,"d":"kr 0.35"}},{"$f":"IFERROR(Mattabell[[#This Row],[PRIS PER PORSJON]]*Mattabell[[#This Row],[PORSJON PER VOKSEN]],\"\")","v":{"v":0.8823529411764707,"d":"kr 0.88"}},"Gulrotstenger, selleri, brokkoli, blomkål, rød og grønn paprika"]
[null,"Ostekuler",{"v":15,"d":"kr 15.00"},5,10,{"$f":"(Mattabell[[#This Row],[PORSJON PER BARN]]*BarnTotalt)+(Mattabell[[#This Row],[PORSJON PER VOKSEN]]*VoksneTotalt)","v":360},{"$f":"IFERROR(Mattabell[[#This Row],[TOTALKOSTNAD]]/Mattabell[[#This Row],[TOTALT ANTALL PORSJONER]],\"\")","v":{"v":0.041666666666666664,"d":"kr 0.04"}},{"$f":"IFERROR(Mattabell[[#This Row],[PRIS PER PORSJON]]*Mattabell[[#This Row],[PORSJON PER BARN]],\"\")","v":{"v":0.20833333333333331,"d":"kr 0.21"}},{"$f":"IFERROR(Mattabell[[#This Row],[PRIS PER PORSJON]]*Mattabell[[#This Row],[PORSJON PER VOKSEN]],\"\")","v":{"v":0.41666666666666663,"d":"kr 0.42"}},"Assortert: kremost, skarp ost m/nøtter"]
[null,"Kjeks",{"v":25,"d":"kr 25.00"},5,10,{"$f":"(Mattabell[[#This Row],[PORSJON PER BARN]]*BarnTotalt)+(Mattabell[[#This Row],[PORSJON PER VOKSEN]]*VoksneTotalt)","v":360},{"$f":"IFERROR(Mattabell[[#This Row],[TOTALKOSTNAD]]/Mattabell[[#This Row],[TOTALT ANTALL PORSJONER]],\"\")","v":{"v":0.06944444444444445,"d":"kr 0.07"}},{"$f":"IFERROR(Mattabell[[#This Row],[PRIS PER PORSJON]]*Mattabell[[#This Row],[PORSJON PER BARN]],\"\")","v":{"v":0.3472222222222222,"d":"kr 0.35"}},{"$f":"IFERROR(Mattabell[[#This Row],[PRIS PER PORSJON]]*Mattabell[[#This Row],[PORSJON PER VOKSEN]],\"\")","v":{"v":0.6944444444444444,"d":"kr 0.69"}},"Assortert"]
[null,"Totalt",{"$f":"SUBTOTAL(109,Mattabell[TOTALKOSTNAD])","v":{"v":475,"d":"kr 475.00"}},{"$f":"SUBTOTAL(109,Mattabell[PORSJON PER BARN])","v":34.5},{"$f":"SUBTOTAL(109,Mattabell[PORSJON PER VOKSEN])","v":65.5},{"$f":"SUBTOTAL(109,Mattabell[TOTALT ANTALL PORSJONER])","v":2393},{"$f":"SUBTOTAL(109,Mattabell[PRIS PER PORSJON])","v":{"v":6.915706603622084,"d":"kr 6.92"}},{"$f":"SUBTOTAL(109,Mattabell[PRIS PER BARN])","v":{"v":7.252884190656953,"d":"kr 7.25"}},{"$f":"SUBTOTAL(109,Mattabell[PRIS PER VOKSEN])","v":{"v":12.690089084110037,"d":"kr 12.69"}}]

{"sheet":"Andre viktige elementer","index":3,"n_rows":32,"n_cols":5,"rows_kept":32,"merged":[[15,1,15,4],[24,1,24,4]]}
[]
[]
[null,"Andre viktige ting"]
[]
[]
[null,"Utstyr og pynt","Kostnad","Kjøpt","Notater"]
[null,"Romleie",{"v":250,"d":"kr 250.00"},"Ja"]
[null,"Duker",{"v":30,"d":"kr 30.00"},"Ja","Leie"]
[null,"Bord og stoler",{"v":0,"d":"kr 0.00"},null,"Inkludert i romleien"]
[null,"Drikkeservietter",{"v":25,"d":"kr 25.00"}]
[null,"Bordservietter",{"v":20,"d":"kr 20.00"},null,"Leie"]
[null,"Servitører",{"v":50,"d":"kr 50.00"},null,"Leie"]
[null,"Glasstøy",{"v":25,"d":"kr 25.00"},null,"Leie"]
[null,"Totalt",{"$f":"SUBTOTAL(109,Tabell1Budsjett[Kostnad])","v":{"v":400,"d":"kr 400.00"}}]
[]
[]
[]
[null,"Dekorasjoner","Kostnad","Kjøpt","Notater"]
[null,"Ballonger",{"v":25,"d":"kr 25.00"}]
[null,"Heliumtank",{"v":50,"d":"kr 50.00"},null,"Leie"]
[null,"Bordpynt",{"v":100,"d":"kr 100.00"},"Ja","10 totalt"]
[null,"Glassvaser",{"v":0,"d":"kr 0.00"},null,"Låne fra Liv"]
[null,"Totalt",{"$f":"SUBTOTAL(109,Tabell2Budsjett[Kostnad])","v":{"v":175,"d":"kr 175.00"}}]
[]
[]
[]
[null,"Annet","Kostnad","Kjøpt","Notater"]
[null,"Invitasjoner",{"v":50,"d":"kr 50.00"},"Ja"]
[null,"Porto",{"v":60,"d":"kr 60.00"},"Ja"]
[null,"Fotograf",{"v":125,"d":"kr 125.00"},null,"2 timer (14:00 - 16:00)"]
[null,"Festtjenester",{"v":50,"d":"kr 50.00"}]
[null,"Totalt",{"$f":"SUBTOTAL(109,Tabell3Budsjett[Kostnad])","v":{"v":285,"d":"kr 285.00"}}]

{"sheet":"Bordplassering","index":4,"n_rows":43,"n_cols":34,"rows_kept":43,"merged":[[35,0,35,17],[35,19,35,33]]}
["Bordplassering"]
{"$rows_empty":33}
[{"$nulls":33},"*1 meter = omtrent 1 kvadratmeter"]
["Notater",{"$nulls":18},{"$f":"\" Totalt antall gjester som har bekreftet \"&BekreftedeGjester","v":" Totalt antall gjester som har bekreftet 46"}]
[{"$nulls":19},"Du kan bruke hvilket som helst av følgende bordoppsett:"]
[{"$nulls":20},{"$f":"ROUNDUP(BekreftedeGjester/6,0)&\" runde bord, 140 cm (6 sitteplasser)\"","v":"8 runde bord, 140 cm (6 sitteplasser)"}]
[{"$nulls":20},{"$f":"ROUNDUP(BekreftedeGjester/8,0) &\" runde bord, 150 cm (8 sitteplasser)\"","v":"6 runde bord, 150 cm (8 sitteplasser)"}]
[{"$nulls":20},{"$f":"ROUNDUP(BekreftedeGjester/10,0)&\" runde bord, 180 cm (10 sitteplasser)\"","v":"5 runde bord, 180 cm (10 sitteplasser)"}]
[{"$nulls":20},{"$f":"ROUNDUP(BekreftedeGjester/6,0)& \" firkantede bord, 75 cm x 180 cm (6 sitteplasser)\"","v":"8 firkantede bord, 75 cm x 180 cm (6 sitteplasser)"}]
[{"$nulls":20},{"$f":"ROUNDUP(BekreftedeGjester/8,0)&\" firkantede bord, 75 cm x 240 cm (8 sitteplasser)\"","v":"6 firkantede bord, 75 cm x 240 cm (8 sitteplasser)"}]
[{"$nulls":19},"(Ønsket plass mellom bord: 2 meter)"]